[Event "*** Titled Tuesday Blitz"]
[Site "Chess.com"]
[Date "2020.11.24"]
[Round "1"]
[White "Savagelittlemole"]
[Black "orestn"]
[Result "1-0"]
[WhiteElo "2590"]
[BlackElo "2295"]
[TimeControl "180+1"]
[EndTime "10:22:46 PST"]
[Termination "Savagelittlemole won by resignation"]

1. e4 {[%clk 0:03:00.4]} 1... e5 {[%clk 0:02:52.7]} 2. Nf3 {[%clk 0:02:59.8]}
2... Nc6 {[%clk 0:02:53.1]} 3. Bb5 {[%clk 0:02:59.5]} 3... a6 {[%clk 0:02:52.9]}
4. Ba4 {[%clk 0:02:58.5]} 4... Nf6 {[%clk 0:02:53.4]} 5. O-O {[%clk 0:02:57.5]}
5... Be7 {[%clk 0:02:52.8]} 6. Re1 {[%clk 0:02:56.3]} 6... b5 {[%clk 0:02:52.8]}
7. Bb3 {[%clk 0:02:55.1]} 7... d6 {[%clk 0:02:53.7]} 8. c3 {[%clk 0:02:54.1]}
8... O-O {[%clk 0:02:53.1]} 9. h3 {[%clk 0:02:53.1]} 9... Na5 {[%clk 0:02:51.9]}
10. Bc2 {[%clk 0:02:52.5]} 10... c5 {[%clk 0:02:52.8]} 11. d4 {[%clk 0:02:52.1]}
11... Nd7 {[%clk 0:02:52.9]} 12. Nbd2 {[%clk 0:02:49.1]} 12... exd4 {[%clk
0:02:52.5]} 13. cxd4 {[%clk 0:02:48.9]} 13... Nc6 {[%clk 0:02:53]} 14. Nf1
{[%clk 0:02:46.1]} 14... Nxd4 {[%clk 0:02:51.8]} 15. Nxd4 {[%clk 0:02:44.5]}
15... cxd4 {[%clk 0:02:52.7]} 16. Qxd4 {[%clk 0:02:44]} 16... Ne5 {[%clk
0:02:52.4]} 17. Bf4 {[%clk 0:02:34.1]} 17... Bf6 {[%clk 0:02:50.5]} 18. Qb4
{[%clk 0:02:02.2]} 18... Nc4 {[%clk 0:01:59]} 19. Rab1 {[%clk 0:01:55.8]} 19...
Qb6 {[%clk 0:01:42]} 20. Ne3 {[%clk 0:01:45.6]} 20... Be6 {[%clk 0:01:14.1]} 21.
Nxc4 {[%clk 0:01:39.3]} 21... Bxc4 {[%clk 0:01:14.2]} 22. b3 {[%clk 0:01:36]}
22... Be6 {[%clk 0:01:03]} 23. Qxd6 {[%clk 0:01:29.6]} 23... Qxd6 {[%clk
0:01:00]} 24. Bxd6 {[%clk 0:01:30.5]} 24... Rfc8 {[%clk 0:00:59.3]} 25. Re2
{[%clk 0:01:23.9]} 25... Bc3 {[%clk 0:00:50.8]} 26. e5 {[%clk 0:01:03.6]} 26...
Bd5 {[%clk 0:00:48]} 27. Rd1 {[%clk 0:01:01.7]} 27... Bc6 {[%clk 0:00:47.4]} 28.
Be4 {[%clk 0:01:01]} 28... Bxe4 {[%clk 0:00:46.6]} 29. Rxe4 {[%clk 0:01:01.9]}
29... b4 {[%clk 0:00:43]} 30. Bxb4 {[%clk 0:00:50]} 30... Bxb4 {[%clk
0:00:42.4]} 31. Rxb4 {[%clk 0:00:50.9]} 31... Rc2 {[%clk 0:00:41.9]} 32. Ra4
{[%clk 0:00:49.7]} 32... g6 {[%clk 0:00:38.4]} 33. Rd6 {[%clk 0:00:44.2]} 33...
Re2 {[%clk 0:00:36.9]} 34. Raxa6 {[%clk 0:00:43.6]} 34... Rc8 {[%clk 0:00:36.8]}
35. e6 {[%clk 0:00:37.9]} 35... Rc1+ {[%clk 0:00:31.5]} 36. Kh2 {[%clk 0:00:38]}
36... fxe6 {[%clk 0:00:31.3]} 37. Rxe6 {[%clk 0:00:21.2]} 37... Rxf2 {[%clk
0:00:30.7]} 38. Re7 {[%clk 0:00:20.7]} 38... Rcc2 {[%clk 0:00:26.1]} 39. Ra8+
{[%clk 0:00:20.3]} 39... Rf8 {[%clk 0:00:26.7]} 40. Rxf8+ {[%clk 0:00:20.8]}
40... Kxf8 {[%clk 0:00:27.2]} 41. Ra7 {[%clk 0:00:21.4]} 41... h5 {[%clk
0:00:26.3]} 42. h4 {[%clk 0:00:20.6]} 42... Rb2 {[%clk 0:00:27.2]} 43. Kh3
{[%clk 0:00:17.8]} 43... Ke8 {[%clk 0:00:26.7]} 44. g3 {[%clk 0:00:18.1]} 44...
Kf8 {[%clk 0:00:26.3]} 45. Ra4 {[%clk 0:00:18]} 45... Ke7 {[%clk 0:00:26.4]} 46.
Ra6 {[%clk 0:00:15.8]} 46... Kf7 {[%clk 0:00:26]} 47. Ra4 {[%clk 0:00:12.8]}
47... Ke6 {[%clk 0:00:25.2]} 48. b4 {[%clk 0:00:13.3]} 48... Kf5 {[%clk
0:00:21.1]} 49. a3 {[%clk 0:00:11.3]} 49... Ke4 {[%clk 0:00:19.7]} 50. Ra6
{[%clk 0:00:11.6]} 50... Rb3 {[%clk 0:00:17.8]} 51. Rxg6 {[%clk 0:00:09.3]}
51... Rxa3 {[%clk 0:00:16.9]} 52. Rg5 {[%clk 0:00:09.8]} 52... Rb3 {[%clk
0:00:16.6]} 53. b5 {[%clk 0:00:08.5]} 1-0

[Event "*** Titled Tuesday Blitz"]
[Site "Chess.com"]
[Date "2020.11.24"]
[Round "1"]
[White "Astaneh"]
[Black "sbouchet"]
[Result "1-0"]
[WhiteElo "2594"]
[BlackElo "2300"]
[TimeControl "180+1"]
[EndTime "10:22:47 PST"]
[Termination "Astaneh won by checkmate"]

1. d4 {[%clk 0:02:58.5]} 1... Nf6 {[%clk 0:02:58.5]} 2. Bf4 {[%clk 0:02:57.5]}
2... g6 {[%clk 0:02:57.3]} 3. Nc3 {[%clk 0:02:57]} 3... Bg7 {[%clk 0:02:57.8]}
4. e4 {[%clk 0:02:57]} 4... d6 {[%clk 0:02:57.3]} 5. Qd2 {[%clk 0:02:55.5]} 5...
c6 {[%clk 0:02:55.1]} 6. O-O-O {[%clk 0:02:51.6]} 6... b5 {[%clk 0:02:53.6]} 7.
e5 {[%clk 0:02:34.6]} 7... dxe5 {[%clk 0:02:52.4]} 8. dxe5 {[%clk 0:02:26.5]}
8... Qxd2+ {[%clk 0:02:51]} 9. Bxd2 {[%clk 0:02:27.4]} 9... Ng4 {[%clk
0:02:46.1]} 10. Nh3 {[%clk 0:02:19.7]} 10... Nxe5 {[%clk 0:02:44.3]} 11. Nf4
{[%clk 0:02:12]} 11... O-O {[%clk 0:02:43.2]} 12. Ne4 {[%clk 0:02:08.3]} 12...
Bf5 {[%clk 0:02:21]} 13. Ng3 {[%clk 0:02:08.1]} 13... Bc8 {[%clk 0:02:11.4]} 14.
f3 {[%clk 0:02:01.8]} 14... Bb7 {[%clk 0:02:05.6]} 15. Ne4 {[%clk 0:02:00.3]}
15... Nbd7 {[%clk 0:02:01.2]} 16. Be3 {[%clk 0:01:58.9]} 16... a6 {[%clk
0:01:36.8]} 17. Kb1 {[%clk 0:01:41.2]} 17... Rac8 {[%clk 0:01:34.4]} 18. Nc5
{[%clk 0:01:39.9]} 18... Nxc5 {[%clk 0:01:34.3]} 19. Bxc5 {[%clk 0:01:40.6]}
19... Rfe8 {[%clk 0:01:31.8]} 20. Be2 {[%clk 0:01:38.9]} 20... e6 {[%clk
0:01:23.4]} 21. Rhe1 {[%clk 0:01:36]} 21... Rcd8 {[%clk 0:01:22.7]} 22. Bb6
{[%clk 0:01:27]} 22... Rxd1+ {[%clk 0:01:21.7]} 23. Rxd1 {[%clk 0:01:27.9]}
23... Bc8 {[%clk 0:01:15]} 24. a4 {[%clk 0:01:16]} 24... Nd7 {[%clk 0:01:14.1]}
25. a5 {[%clk 0:01:12.8]} 25... Bf8 {[%clk 0:01:09.6]} 26. Nd3 {[%clk 0:01:06]}
26... c5 {[%clk 0:01:06.5]} 27. Bc7 {[%clk 0:01:02.1]} 27... c4 {[%clk
0:01:06.3]} 28. Ne5 {[%clk 0:01:01.4]} 28... Nxe5 {[%clk 0:01:02.5]} 29. Bxe5
{[%clk 0:01:02.3]} 29... Bb4 {[%clk 0:01:01.9]} 30. Bc7 {[%clk 0:01:01.2]} 30...
Kf8 {[%clk 0:01:01.9]} 31. c3 {[%clk 0:00:51]} 31... Bc5 {[%clk 0:01:01.5]} 32.
f4 {[%clk 0:00:51.6]} 32... Ke7 {[%clk 0:01:00.4]} 33. Bf3 {[%clk 0:00:52.1]}
33... Bd7 {[%clk 0:00:57]} 34. Bb7 {[%clk 0:00:50.9]} 34... Bc8 {[%clk
0:00:56.3]} 35. Bc6 {[%clk 0:00:49.1]} 35... Rg8 {[%clk 0:00:55.1]} 36. h4
{[%clk 0:00:44.2]} 36... h6 {[%clk 0:00:54.8]} 37. g4 {[%clk 0:00:43.2]} 37...
g5 {[%clk 0:00:53.2]} 38. fxg5 {[%clk 0:00:44.1]} 38... hxg5 {[%clk 0:00:53.5]}
39. h5 {[%clk 0:00:44.7]} 39... f5 {[%clk 0:00:53.5]} 40. Be5 {[%clk 0:00:40.9]}
40... Kf7 {[%clk 0:00:40.3]} 41. gxf5 {[%clk 0:00:19.5]} 41... exf5 {[%clk
0:00:40.1]} 42. Bd5+ {[%clk 0:00:19.8]} 42... Be6 {[%clk 0:00:40]} 43. h6 {[%clk
0:00:20.4]} 43... Bxd5 {[%clk 0:00:19]} 44. Rxd5 {[%clk 0:00:21.3]} 44... Kg6
{[%clk 0:00:19.5]} 45. Rxc5 {[%clk 0:00:20.9]} 45... Kxh6 {[%clk 0:00:18.9]} 46.
Kc2 {[%clk 0:00:17.1]} 46... Re8 {[%clk 0:00:16.6]} 47. Kd2 {[%clk 0:00:16.6]}
47... Re6 {[%clk 0:00:16.1]} 48. Ke3 {[%clk 0:00:16.4]} 48... Kh5 {[%clk
0:00:16.2]} 49. Kf3 {[%clk 0:00:16.3]} 49... Kh4 {[%clk 0:00:15.6]} 50. Bg3+
{[%clk 0:00:16.2]} 50... Kh3 {[%clk 0:00:15.2]} 51. Rxf5 {[%clk 0:00:17.1]}
51... g4+ {[%clk 0:00:15.6]} 52. Kf2 {[%clk 0:00:15.2]} 52... Re8 {[%clk
0:00:14.7]} 53. Rh5# {[%clk 0:00:15.2]} 1-0

[Event "*** Titled Tuesday Blitz"]
[Site "Chess.com"]
[Date "2020.11.24"]
[Round "1"]
[White "machupichu10"]
[Black "BulletMercenary"]
[Result "1-0"]
[WhiteElo "2754"]
[BlackElo "2392"]
[TimeControl "180+1"]
[EndTime "10:22:48 PST"]
[Termination "machupichu10 won by resignation"]

1. d4 {[%clk 0:02:56.7]} 1... e6 {[%clk 0:03:00.3]} 2. c3 {[%clk 0:02:54.1]}
2... d5 {[%clk 0:02:59.9]} 3. Bf4 {[%clk 0:02:54.4]} 3... c5 {[%clk 0:03:00]} 4.
e3 {[%clk 0:02:54.3]} 4... Nc6 {[%clk 0:03:00.2]} 5. Nd2 {[%clk 0:02:54.2]} 5...
Bd6 {[%clk 0:03:00.4]} 6. Bg3 {[%clk 0:02:54.1]} 6... Nge7 {[%clk 0:03:00.1]} 7.
Bd3 {[%clk 0:02:54]} 7... O-O {[%clk 0:02:59.8]} 8. Ngf3 {[%clk 0:02:53.9]} 8...
f5 {[%clk 0:03:00]} 9. Ne5 {[%clk 0:02:49.2]} 9... cxd4 {[%clk 0:02:42.6]} 10.
cxd4 {[%clk 0:02:42.9]} 10... Bxe5 {[%clk 0:02:34.1]} 11. dxe5 {[%clk 0:02:20]}
11... Ng6 {[%clk 0:02:26.5]} 12. f4 {[%clk 0:02:14.2]} 12... Qb6 {[%clk
0:02:21.1]} 13. Qe2 {[%clk 0:01:26.7]} 13... Qxb2 {[%clk 0:02:19.6]} 14. O-O
{[%clk 0:01:27]} 14... Qa3 {[%clk 0:02:06.4]} 15. Rfb1 {[%clk 0:01:18.8]} 15...
Qe7 {[%clk 0:01:57.1]} 16. Nf3 {[%clk 0:01:17.2]} 16... b6 {[%clk 0:01:56.4]}
17. a4 {[%clk 0:01:15]} 17... Bb7 {[%clk 0:01:51.2]} 18. Qb2 {[%clk 0:01:06.1]}
18... Qc5 {[%clk 0:01:34.3]} 19. Bf2 {[%clk 0:01:05.4]} 19... Rfe8 {[%clk
0:01:20.2]} 20. h4 {[%clk 0:00:42.5]} 20... Na5 {[%clk 0:01:14.4]} 21. h5 {[%clk
0:00:40]} 21... Nf8 {[%clk 0:01:14.6]} 22. e4 {[%clk 0:00:40.5]} 22... Qe7
{[%clk 0:00:56.1]} 23. exf5 {[%clk 0:00:40.9]} 23... exf5 {[%clk 0:00:56.5]} 24.
Bxf5 {[%clk 0:00:41.8]} 24... Nc4 {[%clk 0:00:56.8]} 25. Qe2 {[%clk 0:00:40.7]}
25... Ne6 {[%clk 0:00:50.9]} 26. Bxe6+ {[%clk 0:00:38.6]} 26... Qxe6 {[%clk
0:00:51.8]} 27. Nd4 {[%clk 0:00:39.1]} 27... Qf7 {[%clk 0:00:46.7]} 28. Bg3
{[%clk 0:00:39.3]} 28... Rac8 {[%clk 0:00:44.2]} 29. Re1 {[%clk 0:00:37.5]}
29... Nd6 {[%clk 0:00:32.9]} 30. f5 {[%clk 0:00:31.9]} 30... Nxf5 {[%clk
0:00:31.1]} 31. e6 {[%clk 0:00:28.8]} 31... Qf6 {[%clk 0:00:30.4]} 32. Nxf5
{[%clk 0:00:27.5]} 32... Qxf5 {[%clk 0:00:30.8]} 33. Rad1 {[%clk 0:00:20.1]}
33... Rc2 {[%clk 0:00:30.3]} 34. Qe5 {[%clk 0:00:11.6]} 34... Qxe5 {[%clk
0:00:16]} 35. Rxe5 {[%clk 0:00:12.5]} 35... d4 {[%clk 0:00:15.4]} 36. Bf2 {[%clk
0:00:13.1]} 36... Rc6 {[%clk 0:00:14]} 37. e7 {[%clk 0:00:13.1]} 37... Rc7
{[%clk 0:00:12.4]} 38. Bh4 {[%clk 0:00:13.4]} 38... Rd7 {[%clk 0:00:12.4]} 39.
g4 {[%clk 0:00:12.9]} 39... d3 {[%clk 0:00:12.6]} 40. Kf2 {[%clk 0:00:13.1]}
40... g6 {[%clk 0:00:12.3]} 41. h6 {[%clk 0:00:13]} 41... Bc6 {[%clk 0:00:09.6]}
42. a5 {[%clk 0:00:07.6]} 42... d2 {[%clk 0:00:05.6]} 43. Ke3 {[%clk 0:00:07.1]}
43... bxa5 {[%clk 0:00:04.4]} 44. Rxa5 {[%clk 0:00:06.7]} 44... Rb7 {[%clk
0:00:01.5]} 45. Rxd2 {[%clk 0:00:06.1]} 45... Bd7 {[%clk 0:00:02.2]} 46. Rad5
{[%clk 0:00:05.8]} 46... Bxg4 {[%clk 0:00:02.2]} 47. Rd8 {[%clk 0:00:06.2]}
47... Rb3+ {[%clk 0:00:01.4]} 48. Kf4 {[%clk 0:00:06.2]} 48... Rb8 {[%clk
0:00:02]} 49. Rxb8 {[%clk 0:00:06.3]} 49... Rxb8 {[%clk 0:00:02]} 50. Rd8+
{[%clk 0:00:07]} 1-0

[Event "*** Titled Tuesday Blitz"]
[Site "Chess.com"]
[Date "2020.11.24"]
[Round "1"]
[White "Teidi96"]
[Black "FMJoseHerrera"]
[Result "0-1"]
[WhiteElo "2297"]
[BlackElo "2590"]
[TimeControl "180+1"]
[EndTime "10:22:48 PST"]
[Termination "FMJoseHerrera won by resignation"]

1. e4 {[%clk 0:03:00.9]} 1... c5 {[%clk 0:02:50.4]} 2. Nf3 {[%clk 0:03:01.2]}
2... e6 {[%clk 0:02:50.2]} 3. d3 {[%clk 0:03:01]} 3... b6 {[%clk 0:02:50]} 4. g3
{[%clk 0:03:00.5]} 4... Bb7 {[%clk 0:02:49.6]} 5. Bg2 {[%clk 0:03:01.1]} 5...
Qc7 {[%clk 0:02:49.8]} 6. O-O {[%clk 0:03:01.2]} 6... d6 {[%clk 0:02:48.8]} 7.
Qe2 {[%clk 0:03:01.1]} 7... Nd7 {[%clk 0:02:47.4]} 8. c3 {[%clk 0:03:01.5]} 8...
Ngf6 {[%clk 0:02:46.3]} 9. Bf4 {[%clk 0:02:53.8]} 9... Be7 {[%clk 0:02:39.1]}
10. Nbd2 {[%clk 0:02:53.1]} 10... O-O {[%clk 0:02:37.8]} 11. d4 {[%clk
0:02:52.2]} 11... e5 {[%clk 0:02:30.2]} 12. dxe5 {[%clk 0:02:50.9]} 12... Nxe5
{[%clk 0:02:29.3]} 13. Nxe5 {[%clk 0:02:46.2]} 13... dxe5 {[%clk 0:02:30.2]} 14.
Bg5 {[%clk 0:02:43.2]} 14... Rfd8 {[%clk 0:02:27.5]} 15. Bxf6 {[%clk 0:02:41.5]}
15... Bxf6 {[%clk 0:02:26.3]} 16. Nc4 {[%clk 0:02:42.1]} 16... Ba6 {[%clk
0:02:25.4]} 17. Rfd1 {[%clk 0:02:38.8]} 17... Rxd1+ {[%clk 0:02:25]} 18. Rxd1
{[%clk 0:02:38.4]} 18... Rd8 {[%clk 0:02:25.9]} 19. Rxd8+ {[%clk 0:02:32.7]}
19... Qxd8 {[%clk 0:02:26.8]} 20. b3 {[%clk 0:02:24.8]} 20... h6 {[%clk
0:02:21.6]} 21. Qd2 {[%clk 0:02:12.9]} 21... Bxc4 {[%clk 0:02:15]} 22. Qxd8+
{[%clk 0:02:11.8]} 22... Bxd8 {[%clk 0:02:15.9]} 23. bxc4 {[%clk 0:02:12.3]}
23... Bg5 {[%clk 0:02:15.8]} 24. Kf1 {[%clk 0:02:06]} 24... Bd2 {[%clk
0:02:15.4]} 25. Ke2 {[%clk 0:02:05.7]} 25... Bxc3 {[%clk 0:02:16]} 26. Kd3
{[%clk 0:02:06.1]} 26... Bd4 {[%clk 0:02:16.5]} 27. f4 {[%clk 0:02:03.5]} 27...
Bg1 {[%clk 0:02:06.7]} 28. h3 {[%clk 0:01:53.1]} 28... Bh2 {[%clk 0:02:06.1]}
29. f5 {[%clk 0:01:42.6]} 29... Bxg3 {[%clk 0:02:04.2]} 30. Bf3 {[%clk
0:01:41.4]} 30... Kf8 {[%clk 0:02:03.5]} 31. a4 {[%clk 0:01:41.8]} 31... Ke7
{[%clk 0:02:03.2]} 32. Bh5 {[%clk 0:01:36.3]} 32... Kf6 {[%clk 0:02:01.7]} 33.
Ke3 {[%clk 0:01:33.7]} 33... g6 {[%clk 0:01:57.1]} 34. fxg6 {[%clk 0:01:19.6]}
34... fxg6 {[%clk 0:01:58]} 35. Bg4 {[%clk 0:01:14.3]} 35... Kg5 {[%clk
0:01:53.5]} 36. Kf3 {[%clk 0:01:13.6]} 36... Bf4 {[%clk 0:01:53.5]} 37. Bc8
{[%clk 0:01:09.5]} 37... Kf6 {[%clk 0:01:17.5]} 38. Ke2 {[%clk 0:01:06]} 38...
Ke7 {[%clk 0:01:16.3]} 39. Kd3 {[%clk 0:01:04.7]} 39... Kd8 {[%clk 0:01:14.6]}
40. Be6 {[%clk 0:00:58.9]} 40... Ke7 {[%clk 0:01:04.1]} 41. Bc8 {[%clk
0:00:58.3]} 41... h5 {[%clk 0:01:02.9]} 42. Ke2 {[%clk 0:00:55.6]} 42... Kd8
{[%clk 0:00:32.8]} 43. Be6 {[%clk 0:00:55]} 43... Ke7 {[%clk 0:00:31.9]} 44. Bc8
{[%clk 0:00:54.7]} 44... g5 {[%clk 0:00:32.5]} 45. Bf5 {[%clk 0:00:49.3]} 45...
Kd8 {[%clk 0:00:29.1]} 46. Bg6 {[%clk 0:00:48.4]} 46... g4 {[%clk 0:00:27.6]}
47. hxg4 {[%clk 0:00:32.1]} 47... hxg4 {[%clk 0:00:28.5]} 48. Bf5 {[%clk
0:00:32.9]} 48... g3 {[%clk 0:00:27.2]} 49. Kf3 {[%clk 0:00:33.5]} 49... Kc7
{[%clk 0:00:26.7]} 50. Bg6 {[%clk 0:00:28.8]} 50... Kb7 {[%clk 0:00:26.5]} 51.
Be8 {[%clk 0:00:28.3]} 51... Ka6 {[%clk 0:00:26.6]} 52. Bd7 {[%clk 0:00:23.4]}
52... Ka5 {[%clk 0:00:26.7]} 53. Be8 {[%clk 0:00:21.6]} 53... a6 {[%clk
0:00:26.5]} 54. Bd7 {[%clk 0:00:21.7]} 54... Kb4 {[%clk 0:00:26.4]} 55. Bc8
{[%clk 0:00:19]} 55... Kxc4 {[%clk 0:00:23]} 56. Bxa6+ {[%clk 0:00:18.7]} 56...
Kb3 {[%clk 0:00:23.2]} 57. Bb5 {[%clk 0:00:18.1]} 57... c4 {[%clk 0:00:23.5]}
0-1

[Event "*** Titled Tuesday Blitz"]
[Site "Chess.com"]
[Date "2020.11.24"]
[Round "1"]
[White "MikeSailer"]
[Black "lefonghua"]
[Result "0-1"]
[WhiteElo "2158"]
[BlackElo "2519"]
[TimeControl "180+1"]
[EndTime "10:22:49 PST"]
[Termination "lefonghua won on time"]

1. d4 {[%clk 0:03:00.3]} 1... Nf6 {[%clk 0:02:57.1]} 2. Bf4 {[%clk 0:02:59.3]}
2... g6 {[%clk 0:02:57.4]} 3. e3 {[%clk 0:03:00]} 3... Bg7 {[%clk 0:02:57.9]} 4.
Nf3 {[%clk 0:03:00.8]} 4... O-O {[%clk 0:02:58.3]} 5. Be2 {[%clk 0:03:01.5]}
5... c5 {[%clk 0:02:57.5]} 6. c3 {[%clk 0:03:01.5]} 6... b6 {[%clk 0:02:57.8]}
7. O-O {[%clk 0:03:01.1]} 7... Bb7 {[%clk 0:02:58.1]} 8. h3 {[%clk 0:03:01.8]}
8... d6 {[%clk 0:02:58.5]} 9. Nbd2 {[%clk 0:03:01.9]} 9... a6 {[%clk 0:02:58.9]}
10. a4 {[%clk 0:03:02]} 10... Nbd7 {[%clk 0:02:59]} 11. b4 {[%clk 0:02:54.4]}
11... Nd5 {[%clk 0:02:53.7]} 12. Qb3 {[%clk 0:02:38.5]} 12... Nxf4 {[%clk
0:02:48.2]} 13. exf4 {[%clk 0:02:38.7]} 13... Rc8 {[%clk 0:02:45.1]} 14. dxc5
{[%clk 0:02:37.4]} 14... dxc5 {[%clk 0:02:44.1]} 15. b5 {[%clk 0:02:35.8]} 15...
a5 {[%clk 0:02:42.1]} 16. Bc4 {[%clk 0:02:27.3]} 16... Qc7 {[%clk 0:02:37.9]}
17. f5 {[%clk 0:02:15.8]} 17... gxf5 {[%clk 0:02:35.9]} 18. Rfe1 {[%clk
0:02:15.3]} 18... e6 {[%clk 0:02:31.1]} 19. Rad1 {[%clk 0:02:05.3]} 19... Nf6
{[%clk 0:02:28.2]} 20. Ng5 {[%clk 0:01:47.3]} 20... Nd5 {[%clk 0:02:17]} 21.
Ndf3 {[%clk 0:01:39.1]} 21... Rfe8 {[%clk 0:01:59.4]} 22. Nh2 {[%clk 0:01:19.5]}
22... h6 {[%clk 0:01:55.4]} 23. Ngf3 {[%clk 0:01:19]} 23... Nxc3 {[%clk
0:01:53.8]} 24. Rd3 {[%clk 0:01:11.7]} 24... Nd5 {[%clk 0:01:44.1]} 25. Nf1
{[%clk 0:01:09.9]} 25... Rcd8 {[%clk 0:01:42.8]} 26. Ng3 {[%clk 0:01:09.8]}
26... Nf4 {[%clk 0:01:38.7]} 27. Rxd8 {[%clk 0:01:07.5]} 27... Rxd8 {[%clk
0:01:39.6]} 28. Nh5 {[%clk 0:01:06.2]} 28... Nxh5 {[%clk 0:01:30.5]} 29. Bxe6
{[%clk 0:01:01.2]} 29... fxe6 {[%clk 0:01:18.9]} 30. Qxe6+ {[%clk 0:00:58.7]}
30... Qf7 {[%clk 0:01:12.9]} 31. Qxb6 {[%clk 0:00:58.6]} 31... Rc8 {[%clk
0:01:10.6]} 32. Ne5 {[%clk 0:00:51.6]} 32... Bxe5 {[%clk 0:01:03.7]} 33. Rxe5
{[%clk 0:00:51.7]} 33... Ng7 {[%clk 0:00:50]} 34. Qxa5 {[%clk 0:00:27.2]} 34...
c4 {[%clk 0:00:43.8]} 35. Qc3 {[%clk 0:00:27.4]} 35... Be4 {[%clk 0:00:42.9]}
36. a5 {[%clk 0:00:23.2]} 36... Qg6 {[%clk 0:00:38.8]} 37. g3 {[%clk 0:00:18.7]}
37... Bd3 {[%clk 0:00:32.7]} 38. b6 {[%clk 0:00:10.5]} 38... Kh7 {[%clk
0:00:18]} 39. b7 {[%clk 0:00:09.6]} 39... Rb8 {[%clk 0:00:18]} 40. Re7 {[%clk
0:00:09.3]} 40... Be4 {[%clk 0:00:16.8]} 41. a6 {[%clk 0:00:07.9]} 41... Re8
{[%clk 0:00:14.6]} 42. Rxe8 {[%clk 0:00:06.2]} 42... Qxe8 {[%clk 0:00:14.3]} 43.
Qxc4 {[%clk 0:00:05.3]} 43... Qd7 {[%clk 0:00:12.4]} 44. Qc1 {[%clk 0:00:02.2]}
44... Bxb7 {[%clk 0:00:11.3]} 45. axb7 {[%clk 0:00:02.3]} 45... Qxb7 {[%clk
0:00:12.2]} 46. Qc2 {[%clk 0:00:02.4]} 46... Qe4 {[%clk 0:00:11.1]} 0-1

[Event "*** Titled Tuesday Blitz"]
[Site "Chess.com"]
[Date "2020.11.24"]
[Round "1"]
[White "eightbyeightchess"]
[Black "Twitch_ElhamBlitz05"]
[Result "0-1"]
[WhiteElo "2419"]
[BlackElo "2815"]
[TimeControl "180+1"]
[EndTime "10:22:51 PST"]
[Termination "Twitch_ElhamBlitz05 won by resignation"]

1. e4 {[%clk 0:03:00.9]} 1... c6 {[%clk 0:02:59.3]} 2. d4 {[%clk 0:03:00.9]}
2... d5 {[%clk 0:02:59.8]} 3. e5 {[%clk 0:03:01.4]} 3... c5 {[%clk 0:02:59.8]}
4. dxc5 {[%clk 0:03:02.3]} 4... e6 {[%clk 0:02:59.5]} 5. Bd3 {[%clk 0:03:01.8]}
5... Nd7 {[%clk 0:02:59.5]} 6. f4 {[%clk 0:02:55.4]} 6... Nxc5 {[%clk
0:02:59.4]} 7. Be2 {[%clk 0:02:53]} 7... Ne4 {[%clk 0:02:57.8]} 8. Be3 {[%clk
0:02:45]} 8... Ne7 {[%clk 0:02:49.1]} 9. Nf3 {[%clk 0:02:03]} 9... Nf5 {[%clk
0:02:47.6]} 10. Bg1 {[%clk 0:02:03]} 10... Bc5 {[%clk 0:02:30]} 11. Nbd2 {[%clk
0:01:36.8]} 11... Bxg1 {[%clk 0:02:08.7]} 12. Rxg1 {[%clk 0:01:09.1]} 12... Ne3
{[%clk 0:01:55.6]} 13. Qc1 {[%clk 0:01:09]} 13... Qb6 {[%clk 0:01:56.1]} 14. a4
{[%clk 0:00:32.7]} 14... a5 {[%clk 0:01:22.5]} 15. Ra3 {[%clk 0:00:25.8]} 15...
Nf5 {[%clk 0:01:04.5]} 16. Bb5+ {[%clk 0:00:23.2]} 16... Bd7 {[%clk 0:01:02.7]}
17. Bxd7+ {[%clk 0:00:22.2]} 17... Kxd7 {[%clk 0:01:02.6]} 18. Rd3 {[%clk
0:00:13.7]} 18... Qf2+ {[%clk 0:00:59.2]} 19. Kd1 {[%clk 0:00:13.2]} 19... Ne3+
{[%clk 0:00:54]} 20. Rxe3 {[%clk 0:00:13.3]} 20... Qxe3 {[%clk 0:00:54.9]} 21.
Nxe4 {[%clk 0:00:13.7]} 21... Qxe4 {[%clk 0:00:45.9]} 22. b3 {[%clk 0:00:11.4]}
22... Rac8 {[%clk 0:00:44.3]} 23. Re1 {[%clk 0:00:10.7]} 23... Qb4 {[%clk
0:00:43.9]} 24. Qd2 {[%clk 0:00:09.9]} 24... Qxd2+ {[%clk 0:00:43.6]} 25. Kxd2
{[%clk 0:00:10.8]} 25... h6 {[%clk 0:00:44.1]} 26. c3 {[%clk 0:00:10.9]} 26...
Ke7 {[%clk 0:00:44.1]} 27. Nd4 {[%clk 0:00:10.4]} 27... g6 {[%clk 0:00:41.9]}
28. Nb5 {[%clk 0:00:10.7]} 28... g5 {[%clk 0:00:41.1]} 29. Nd6 {[%clk
0:00:06.3]} 29... gxf4 {[%clk 0:00:41.5]} 30. Nxc8+ {[%clk 0:00:06.2]} 30...
Rxc8 {[%clk 0:00:42.4]} 31. Rf1 {[%clk 0:00:06.3]} 31... Rg8 {[%clk 0:00:43.1]}
32. Rf2 {[%clk 0:00:04.6]} 32... Rg5 {[%clk 0:00:43.7]} 33. Re2 {[%clk
0:00:04.2]} 33... f6 {[%clk 0:00:40.5]} 34. exf6+ {[%clk 0:00:05.1]} 34... Kxf6
{[%clk 0:00:41.4]} 35. Kd3 {[%clk 0:00:06]} 35... e5 {[%clk 0:00:41.6]} 36. c4
{[%clk 0:00:06.4]} 36... dxc4+ {[%clk 0:00:40]} 37. bxc4 {[%clk 0:00:07.1]}
37... Kf5 {[%clk 0:00:40.1]} 38. c5 {[%clk 0:00:07.4]} 38... Rg8 {[%clk
0:00:35.5]} 39. Kc4 {[%clk 0:00:07.6]} 39... e4 {[%clk 0:00:28]} 40. Kb5 {[%clk
0:00:07.3]} 40... Rc8 {[%clk 0:00:27.3]} 41. Rc2 {[%clk 0:00:04.3]} 41... e3
{[%clk 0:00:20.5]} 42. Kxa5 {[%clk 0:00:03]} 42... Ke4 {[%clk 0:00:20]} 43. Kb6
{[%clk 0:00:03.2]} 43... Kd3 {[%clk 0:00:20.6]} 44. Rc1 {[%clk 0:00:02.4]} 44...
Kd2 {[%clk 0:00:19.4]} 45. Kxb7 {[%clk 0:00:01.7]} 45... Kxc1 {[%clk 0:00:18.5]}
46. Kxc8 {[%clk 0:00:01.6]} 46... e2 {[%clk 0:00:19.2]} 47. c6 {[%clk
0:00:02.3]} 47... e1=Q {[%clk 0:00:20.1]} 48. c7 {[%clk 0:00:03.1]} 48... Qa5
{[%clk 0:00:11.3]} 49. Kb8 {[%clk 0:00:01.9]} 49... Qb4+ {[%clk 0:00:11.1]} 50.
Kc8 {[%clk 0:00:01.5]} 50... Qxa4 {[%clk 0:00:11.6]} 0-1